[Event "Titled Tuesday Blitz January 17 Early 2023"]
[White "Vasques, Antonio Pedro Freixial"]
[Black "Cepo, Toni"]
[WhiteFideId "1908332"]
[BlackFideId "4675916"]
[WhiteElo "2214"]
[BlackElo "2145"]
[Result "1-0"]
[Round "10"]
[TimeControl "180+2"]
[Date "2023.01.17"]
[WhiteClock "0:02:06"]
[BlackClock "0:02:41"]

1. Nf3 {[%clk 0:02:38]}  Nf6 {[%clk 0:02:56]} 2. c4 {[%clk 0:02:39]}  g6 {[%clk 0:02:55]} 3. Nc3 {[%clk 0:02:39]}  Bg7 {[%clk 0:02:56]} 4. d4 {[%clk 0:02:39]}  O-O {[%clk 0:02:56]} 5. e4 {[%clk 0:02:39]}  d6 {[%clk 0:02:57]} 6. Be2 {[%clk 0:02:40]}  e5 {[%clk 0:02:57]} 7. O-O {[%clk 0:02:39]}  Nc6 {[%clk 0:02:57]} 8. d5 {[%clk 0:02:39]}  Ne7 {[%clk 0:02:57]} 9. Nd2 {[%clk 0:02:34]}  Nd7 {[%clk 0:02:55]} 10. b4 {[%clk 0:02:33]}  f5 {[%clk 0:02:55]} 11. f3 {[%clk 0:02:32]}  f4 {[%clk 0:02:54]} 12. Nb3 {[%clk 0:02:32]}  g5 {[%clk 0:02:53]} 13. c5 {[%clk 0:02:33]}  Ng6 {[%clk 0:02:53]} 14. cxd6 {[%clk 0:02:31]}  cxd6 {[%clk 0:02:54]} 15. Bd2 {[%clk 0:02:27]}  Rf7 {[%clk 0:02:51]} 16. Be1 {[%clk 0:02:26]}  h5 {[%clk 0:02:50]} 17. Qc2 {[%clk 0:02:26]}  Bf8 {[%clk 0:02:50]} 18. Kh1 {[%clk 0:02:26]}  Nb6 {[%clk 0:02:50]} 19. Bf2 {[%clk 0:02:25]}  g4 {[%clk 0:02:50]} 20. Bg1 {[%clk 0:02:24]}  Rg7 {[%clk 0:02:48]} 21. Rfc1 {[%clk 0:02:23]}  Nh4 {[%clk 0:02:48]} 22. Nb5 {[%clk 0:02:17]}  gxf3 {[%clk 0:02:48]} 23. Bxf3 {[%clk 0:02:16]}  Nxf3 {[%clk 0:02:47]} 24. gxf3 {[%clk 0:02:17]}  Bh3 {[%clk 0:02:47]} 25. Bxb6 {[%clk 0:02:09]}  Bg2+ {[%clk 0:02:44]} 26. Qxg2 {[%clk 0:02:09]}  Qxb6 {[%clk 0:02:41]} 27. Qe2 {[%clk 0:02:06]} 1-0


[Site "https://www.chess.com"]

[Event "Titled Tuesday Blitz January 17 Early 2023"]
[White "Nugumanov, Bakhtiyar"]
[Black "Clawitter, Craig"]
[WhiteFideId "13701797"]
[BlackFideId "2023105"]
[WhiteElo "2316"]
[BlackElo "2050"]
[Result "1-0"]
[Round "10"]
[TimeControl "180+2"]
[Date "2023.01.17"]
[WhiteClock "0:01:00"]
[BlackClock "0:00:10"]

1. Nf3 {[%clk 0:03:00]}  Nf6 {[%clk 0:02:59]} 2. c4 {[%clk 0:03:00]}  e6 {[%clk 0:02:59]} 3. g3 {[%clk 0:03:01]}  d5 {[%clk 0:02:59]} 4. Bg2 {[%clk 0:03:02]}  Be7 {[%clk 0:03:00]} 5. O-O {[%clk 0:03:02]}  O-O {[%clk 0:03:00]} 6. b3 {[%clk 0:03:03]}  c5 {[%clk 0:03:00]} 7. cxd5 {[%clk 0:03:01]}  exd5 {[%clk 0:02:57]} 8. Bb2 {[%clk 0:03:01]}  d4 {[%clk 0:02:51]} 9. b4 {[%clk 0:02:54]}  cxb4 {[%clk 0:02:46]} 10. Nxd4 {[%clk 0:02:51]}  Qc7 {[%clk 0:02:22]} 11. d3 {[%clk 0:02:47]}  Nc6 {[%clk 0:02:21]} 12. Nf3 {[%clk 0:02:44]}  h6 {[%clk 0:02:01]} 13. Nbd2 {[%clk 0:02:44]}  Be6 {[%clk 0:02:00]} 14. a3 {[%clk 0:02:12]}  bxa3 {[%clk 0:01:38]} 15. Bxa3 {[%clk 0:02:13]}  a5 {[%clk 0:01:18]} 16. Nb3 {[%clk 0:01:50]}  Bxa3 {[%clk 0:01:01]} 17. Rxa3 {[%clk 0:01:51]}  a4 {[%clk 0:01:02]} 18. Nc5 {[%clk 0:01:49]}  b5 {[%clk 0:00:50]} 19. Nxe6 {[%clk 0:01:48]}  fxe6 {[%clk 0:00:51]} 20. Qc2 {[%clk 0:01:41]}  Qd6 {[%clk 0:00:21]} 21. Rc3 {[%clk 0:01:23]}  Nb4 {[%clk 0:00:19]} 22. Qb2 {[%clk 0:01:16]}  Nfd5 {[%clk 0:00:19]} 23. Ra3 {[%clk 0:01:05]}  Rac8 {[%clk 0:00:18]} 24. Nd4 {[%clk 0:01:02]}  Qc5 {[%clk 0:00:12]} 25. Nxe6 {[%clk 0:01:01]}  Qc2 {[%clk 0:00:10]} 26. Qxg7# {[%clk 0:01:00]} 1-0


[Site "https://www.chess.com"]

[Event "Titled Tuesday Blitz January 17 Early 2023"]
[White "Ho, In Hei Henry"]
[Black "Grot, Blazej"]
[WhiteFideId "6002552"]
[BlackFideId "21835845"]
[WhiteElo "1735"]
[BlackElo "1990"]
[Result "0-1"]
[Round "10"]
[TimeControl "180+2"]
[Date "2023.01.17"]
[WhiteClock "0:01:30"]
[BlackClock "0:02:25"]

1. e4 {[%clk 0:03:00]}  c5 {[%clk 0:02:59]} 2. Nf3 {[%clk 0:02:59]}  e6 {[%clk 0:02:59]} 3. d4 {[%clk 0:03:00]}  cxd4 {[%clk 0:02:57]} 4. Nxd4 {[%clk 0:03:00]}  Nc6 {[%clk 0:02:57]} 5. Nc3 {[%clk 0:02:59]}  Nf6 {[%clk 0:02:56]} 6. Nxc6 {[%clk 0:02:58]}  bxc6 {[%clk 0:02:56]} 7. Bd3 {[%clk 0:02:59]}  d5 {[%clk 0:02:55]} 8. O-O {[%clk 0:02:57]}  Bb7 {[%clk 0:02:54]} 9. Re1 {[%clk 0:02:55]}  Be7 {[%clk 0:02:53]} 10. e5 {[%clk 0:02:52]}  Nd7 {[%clk 0:02:52]} 11. Qg4 {[%clk 0:02:52]}  Kf8 {[%clk 0:02:50]} 12. Re3 {[%clk 0:02:37]}  h5 {[%clk 0:02:48]} 13. Qd1 {[%clk 0:02:15]}  d4 {[%clk 0:02:47]} 14. Rf3 {[%clk 0:02:08]}  dxc3 {[%clk 0:02:45]} 15. Qe2 {[%clk 0:02:00]}  Qc7 {[%clk 0:02:35]} 16. Bg6 {[%clk 0:01:47]}  Nxe5 {[%clk 0:02:34]} 17. Bxf7 {[%clk 0:01:39]}  Nxf3+ {[%clk 0:02:31]} 18. Qxf3 {[%clk 0:01:38]}  Bf6 {[%clk 0:02:31]} 19. Bxe6 {[%clk 0:01:33]}  Re8 {[%clk 0:02:28]} 20. Bb3 {[%clk 0:01:30]}  Re1# {[%clk 0:02:25]} 0-1


[Site "https://www.chess.com"]

[Event "Titled Tuesday Blitz January 17 Early 2023"]
[White "Broca Jimenez, Fernando"]
[Black "Ezat, Mohamed"]
[WhiteFideId "5104742"]
[BlackFideId "10600906"]
[WhiteElo "2075"]
[BlackElo "2402"]
[Result "1-0"]
[Round "10"]
[TimeControl "180+2"]
[Date "2023.01.17"]
[WhiteClock "0:00:06"]
[BlackClock "0:00:04"]

1. e4 {[%clk 0:03:00]}  e5 {[%clk 0:00:32]} 2. Nf3 {[%clk 0:02:50]}  Nc6 {[%clk 0:00:33]} 3. Bb5 {[%clk 0:02:50]}  Nge7 {[%clk 0:00:33]} 4. d4 {[%clk 0:02:48]}  exd4 {[%clk 0:00:32]} 5. Nxd4 {[%clk 0:02:49]}  a6 {[%clk 0:00:29]} 6. Bxc6 {[%clk 0:02:48]}  Nxc6 {[%clk 0:00:28]} 7. Nxc6 {[%clk 0:02:48]}  bxc6 {[%clk 0:00:29]} 8. O-O {[%clk 0:02:47]}  Bc5 {[%clk 0:00:26]} 9. b3 {[%clk 0:02:44]}  O-O {[%clk 0:00:25]} 10. Bb2 {[%clk 0:02:44]}  d5 {[%clk 0:00:25]} 11. Nc3 {[%clk 0:02:38]}  Be6 {[%clk 0:00:19]} 12. Qd3 {[%clk 0:02:34]}  Re8 {[%clk 0:00:18]} 13. Rad1 {[%clk 0:02:26]}  Qh4 {[%clk 0:00:19]} 14. exd5 {[%clk 0:02:13]}  cxd5 {[%clk 0:00:18]} 15. Nxd5 {[%clk 0:02:08]}  Rad8 {[%clk 0:00:17]} 16. Qc3 {[%clk 0:01:48]}  Bf8 {[%clk 0:00:15]} 17. Ne3 {[%clk 0:01:28]}  Rxd1 {[%clk 0:00:13]} 18. Rxd1 {[%clk 0:01:26]}  c5 {[%clk 0:00:14]} 19. Qd3 {[%clk 0:00:39]}  h6 {[%clk 0:00:12]} 20. g3 {[%clk 0:00:27]}  Qh3 {[%clk 0:00:11]} 21. Ng2 {[%clk 0:00:24]}  c4 {[%clk 0:00:11]} 22. bxc4 {[%clk 0:00:20]}  Qg4 {[%clk 0:00:07]} 23. Nf4 {[%clk 0:00:20]}  Bf5 {[%clk 0:00:06]} 24. Qe2 {[%clk 0:00:18]}  Qg5 {[%clk 0:00:05]} 25. Qxe8 {[%clk 0:00:17]}  Bg4 {[%clk 0:00:01]} 26. Re1 {[%clk 0:00:16]}  Qa5 {[%clk 0:00:01]} 27. Qe3 {[%clk 0:00:09]}  Bf5 {[%clk 0:00:01]} 28. Nd5 {[%clk 0:00:09]}  Qxa2 {[%clk 0:00:02]} 29. Ne7+ {[%clk 0:00:08]}  Bxe7 {[%clk 0:00:03]} 30. Qxe7 {[%clk 0:00:08]}  Bg6 {[%clk 0:00:04]} 31. Bd4 {[%clk 0:00:06]}  Kh7 {[%clk 0:00:04]} 32. Qe5 {[%clk 0:00:07]}  Qa5 {[%clk 0:00:04]} 33. Qxg7# {[%clk 0:00:06]} 1-0


[Site "https://www.chess.com"]

[Event "Titled Tuesday Blitz January 17 Early 2023"]
[White "Rian, Kapriaga"]
[Black "Liimatainen, Jero"]
[WhiteFideId "7103263"]
[BlackFideId "509531"]
[WhiteElo "2089"]
[BlackElo "1948"]
[Result "1-0"]
[Round "10"]
[TimeControl "180+2"]
[Date "2023.01.17"]
[WhiteClock "0:00:39"]
[BlackClock "0:00:06"]

1. d4 {[%clk 0:02:54]}  Nf6 {[%clk 0:02:59]} 2. Nf3 {[%clk 0:02:51]}  e6 {[%clk 0:02:58]} 3. Bf4 {[%clk 0:02:50]}  c5 {[%clk 0:02:57]} 4. e3 {[%clk 0:02:49]}  Nc6 {[%clk 0:02:56]} 5. Nbd2 {[%clk 0:02:47]}  d5 {[%clk 0:02:56]} 6. Be2 {[%clk 0:02:43]}  Bd6 {[%clk 0:02:54]} 7. dxc5 {[%clk 0:02:41]}  Bxc5 {[%clk 0:02:53]} 8. O-O {[%clk 0:02:38]}  O-O {[%clk 0:02:52]} 9. a3 {[%clk 0:02:37]}  b6 {[%clk 0:02:49]} 10. c4 {[%clk 0:02:36]}  Bb7 {[%clk 0:02:46]} 11. cxd5 {[%clk 0:02:34]}  Nxd5 {[%clk 0:02:44]} 12. Bg3 {[%clk 0:02:34]}  Be7 {[%clk 0:02:43]} 13. Rc1 {[%clk 0:02:32]}  Bf6 {[%clk 0:02:41]} 14. Qb3 {[%clk 0:02:28]}  Rc8 {[%clk 0:02:39]} 15. Ne4 {[%clk 0:02:26]}  Na5 {[%clk 0:02:27]} 16. Nxf6+ {[%clk 0:02:24]}  Qxf6 {[%clk 0:02:26]} 17. Qa2 {[%clk 0:02:21]}  h6 {[%clk 0:02:12]} 18. Be5 {[%clk 0:02:19]}  Qe7 {[%clk 0:02:10]} 19. Rfd1 {[%clk 0:02:08]}  Rxc1 {[%clk 0:02:08]} 20. Rxc1 {[%clk 0:02:06]}  Rc8 {[%clk 0:02:07]} 21. Rxc8+ {[%clk 0:02:02]}  Bxc8 {[%clk 0:02:07]} 22. h3 {[%clk 0:02:00]}  Qc5 {[%clk 0:01:59]} 23. Qa1 {[%clk 0:01:48]}  Nb3 {[%clk 0:01:57]} 24. Qd1 {[%clk 0:01:45]}  Qc1 {[%clk 0:01:37]} 25. Qxc1 {[%clk 0:01:41]}  Nxc1 {[%clk 0:01:38]} 26. Bc4 {[%clk 0:01:39]}  Bd7 {[%clk 0:01:32]} 27. e4 {[%clk 0:01:35]}  Nf6 {[%clk 0:01:28]} 28. Bxf6 {[%clk 0:01:26]}  gxf6 {[%clk 0:01:27]} 29. e5 {[%clk 0:01:16]}  b5 {[%clk 0:01:23]} 30. Bf1 {[%clk 0:01:14]}  fxe5 {[%clk 0:01:20]} 31. Nxe5 {[%clk 0:01:13]}  Be8 {[%clk 0:01:21]} 32. f4 {[%clk 0:01:05]}  Nb3 {[%clk 0:01:18]} 33. Kf2 {[%clk 0:00:58]}  Kg7 {[%clk 0:01:07]} 34. Ke3 {[%clk 0:00:57]}  f6 {[%clk 0:00:54]} 35. Nf3 {[%clk 0:00:56]}  Bc6 {[%clk 0:00:51]} 36. Nd4 {[%clk 0:00:54]}  Nxd4 {[%clk 0:00:48]} 37. Kxd4 {[%clk 0:00:54]}  e5+ {[%clk 0:00:29]} 38. fxe5 {[%clk 0:00:53]}  fxe5+ {[%clk 0:00:29]} 39. Kxe5 {[%clk 0:00:54]}  a5 {[%clk 0:00:30]} 40. b4 {[%clk 0:00:51]}  axb4 {[%clk 0:00:29]} 41. axb4 {[%clk 0:00:52]}  Kg6 {[%clk 0:00:29]} 42. g3 {[%clk 0:00:51]}  Kg5 {[%clk 0:00:28]} 43. Be2 {[%clk 0:00:46]}  Bd7 {[%clk 0:00:06]} 44. h4+ {[%clk 0:00:45]}  Kg6 {[%clk 0:00:06]} 45. Kd6 {[%clk 0:00:39]} 1-0


[Site "https://www.chess.com"]

[Event "Titled Tuesday Blitz January 17 Early 2023"]
[White "Kiseleva, Arina"]
[Black "Manon-og, Ramon Jr."]
[WhiteFideId "4164989"]
[BlackFideId "5200776"]
[WhiteElo "1962"]
[BlackElo "1999"]
[Result "0-1"]
[Round "10"]
[TimeControl "180+2"]
[Date "2023.01.17"]
[WhiteClock "0:00:01"]
[BlackClock "0:01:44"]

1. d4 {[%clk 0:03:00]}  Nf6 {[%clk 0:02:59]} 2. Nf3 {[%clk 0:02:59]}  g6 {[%clk 0:03:00]} 3. c4 {[%clk 0:02:59]}  d5 {[%clk 0:03:00]} 4. cxd5 {[%clk 0:02:57]}  Nxd5 {[%clk 0:03:01]} 5. e4 {[%clk 0:02:57]}  Nb6 {[%clk 0:03:00]} 6. h3 {[%clk 0:02:57]}  Bg7 {[%clk 0:03:01]} 7. Be3 {[%clk 0:02:55]}  O-O {[%clk 0:03:01]} 8. Nc3 {[%clk 0:02:53]}  Nc6 {[%clk 0:03:00]} 9. Be2 {[%clk 0:02:39]}  Na5 {[%clk 0:03:00]} 10. O-O {[%clk 0:02:35]}  Nac4 {[%clk 0:03:00]} 11. Qc2 {[%clk 0:02:19]}  Nxe3 {[%clk 0:02:59]} 12. fxe3 {[%clk 0:02:19]}  c6 {[%clk 0:02:59]} 13. e5 {[%clk 0:02:16]}  Bf5 {[%clk 0:02:53]} 14. e4 {[%clk 0:02:12]}  Be6 {[%clk 0:02:54]} 15. b3 {[%clk 0:02:07]}  Bh6 {[%clk 0:02:50]} 16. Qd3 {[%clk 0:02:01]}  Qc7 {[%clk 0:02:45]} 17. Rad1 {[%clk 0:01:25]}  Rad8 {[%clk 0:02:44]} 18. Kh1 {[%clk 0:01:20]}  Qc8 {[%clk 0:02:41]} 19. Ng1 {[%clk 0:00:59]}  f5 {[%clk 0:02:38]} 20. Bf3 {[%clk 0:00:30]}  Bf4 {[%clk 0:02:31]} 21. Qc2 {[%clk 0:00:26]}  Be3 {[%clk 0:02:26]} 22. exf5 {[%clk 0:00:17]}  Bxf5 {[%clk 0:02:25]} 23. Be4 {[%clk 0:00:17]}  Bxe4 {[%clk 0:02:21]} 24. Qxe4 {[%clk 0:00:17]}  Rxf1 {[%clk 0:02:20]} 25. Rxf1 {[%clk 0:00:17]}  Bxd4 {[%clk 0:02:20]} 26. Nce2 {[%clk 0:00:15]}  Bc5 {[%clk 0:02:13]} 27. e6 {[%clk 0:00:13]}  Rf8 {[%clk 0:02:10]} 28. Nf3 {[%clk 0:00:12]}  Nd5 {[%clk 0:02:09]} 29. Ng3 {[%clk 0:00:10]}  Nc7 {[%clk 0:02:00]} 30. Ng5 {[%clk 0:00:05]}  Rxf1+ {[%clk 0:01:49]} 31. Nxf1 {[%clk 0:00:06]}  Qd8 {[%clk 0:01:48]} 32. Nf7 {[%clk 0:00:05]}  Qd1 {[%clk 0:01:46]} 33. Qf4 {[%clk 0:00:04]}  Nxe6 {[%clk 0:01:44]} 34. Nh6+ {[%clk 0:00:02]}  Kg7 {[%clk 0:01:44]} 35. Qf7+ {[%clk 0:00:02]}  Kxh6 {[%clk 0:01:45]} 36. Kh2 {[%clk 0:00:01]}  Bd6+ {[%clk 0:01:44]} 0-1


[Site "https://www.chess.com"]

[Event "Titled Tuesday Blitz January 17 Early 2023"]
[White "Better_Chess_Faster"]
[Black "Martin, Lewis"]
[BlackFideId "410551"]
[WhiteElo "2030"]
[BlackElo "2135"]
[Result "0-1"]
[Round "10"]
[TimeControl "180+2"]
[Date "2023.01.17"]
[WhiteClock "0:00:16"]
[BlackClock "0:00:48"]

1. d4 {[%clk 0:03:00]}  d5 {[%clk 0:02:37]} 2. c4 {[%clk 0:03:00]}  c6 {[%clk 0:02:37]} 3. Nf3 {[%clk 0:03:00]}  Nf6 {[%clk 0:02:37]} 4. e3 {[%clk 0:03:00]}  g6 {[%clk 0:02:36]} 5. Nc3 {[%clk 0:02:59]}  Bg7 {[%clk 0:02:37]} 6. Be2 {[%clk 0:02:58]}  O-O {[%clk 0:02:34]} 7. O-O {[%clk 0:02:58]}  Na6 {[%clk 0:02:30]} 8. cxd5 {[%clk 0:02:55]}  cxd5 {[%clk 0:02:28]} 9. b3 {[%clk 0:02:53]}  Bf5 {[%clk 0:02:26]} 10. h3 {[%clk 0:02:48]}  Rc8 {[%clk 0:02:23]} 11. Bb2 {[%clk 0:02:45]}  Nb4 {[%clk 0:02:19]} 12. Ne5 {[%clk 0:02:39]}  Ne4 {[%clk 0:02:16]} 13. Nxe4 {[%clk 0:02:25]}  Bxe4 {[%clk 0:02:17]} 14. a3 {[%clk 0:02:14]}  Nc2 {[%clk 0:02:00]} 15. Rc1 {[%clk 0:02:13]}  Qa5 {[%clk 0:01:57]} 16. Bd3 {[%clk 0:02:03]}  Nxe3 {[%clk 0:01:26]} 17. fxe3 {[%clk 0:01:55]}  f6 {[%clk 0:01:26]} 18. Bxe4 {[%clk 0:01:50]}  fxe5 {[%clk 0:01:20]} 19. Bd3 {[%clk 0:01:36]}  exd4 {[%clk 0:01:17]} 20. Rxf8+ {[%clk 0:01:30]}  Rxf8 {[%clk 0:01:16]} 21. b4 {[%clk 0:01:24]}  Qb6 {[%clk 0:01:13]} 22. exd4 {[%clk 0:01:19]}  Bh6 {[%clk 0:01:07]} 23. Rc5 {[%clk 0:01:16]}  Be3+ {[%clk 0:01:05]} 24. Kh1 {[%clk 0:01:14]}  Qd6 {[%clk 0:01:03]} 25. Qe2 {[%clk 0:01:01]}  Qg3 {[%clk 0:00:58]} 26. Rxd5 {[%clk 0:00:52]}  Rf2 {[%clk 0:00:56]} 27. Rd8+ {[%clk 0:00:51]}  Kg7 {[%clk 0:00:54]} 28. d5+ {[%clk 0:00:47]}  Kh6 {[%clk 0:00:55]} 29. Qxf2 {[%clk 0:00:33]}  Qxf2 {[%clk 0:00:52]} 30. Kh2 {[%clk 0:00:16]}  Bf4+ {[%clk 0:00:49]} 31. Kh1 {[%clk 0:00:16]}  Qe1+ {[%clk 0:00:48]} 32. Bf1 {[%clk 0:00:16]}  Qxf1# {[%clk 0:00:48]} 0-1


[Site "https://www.chess.com"]

[Event "Titled Tuesday Blitz January 17 Early 2023"]
[White "Garrido, Denis"]
[Black "Mohammadian, Mohammad"]
[WhiteFideId "601217"]
[BlackFideId "12566055"]
[WhiteElo "2205"]
[BlackElo "1398"]
[Result "1-0"]
[Round "10"]
[TimeControl "180+2"]
[Date "2023.01.17"]
[WhiteClock "0:01:12"]
[BlackClock "0:00:55"]

1. e4 {[%clk 0:02:59]}  e5 {[%clk 0:02:59]} 2. Nf3 {[%clk 0:02:59]}  Nc6 {[%clk 0:02:58]} 3. Bb5 {[%clk 0:02:59]}  a6 {[%clk 0:02:58]} 4. Ba4 {[%clk 0:02:59]}  Nf6 {[%clk 0:02:57]} 5. Nc3 {[%clk 0:02:56]}  d6 {[%clk 0:02:53]} 6. d3 {[%clk 0:02:52]}  h6 {[%clk 0:02:52]} 7. h3 {[%clk 0:02:46]}  Be7 {[%clk 0:02:51]} 8. Be3 {[%clk 0:02:46]}  Bd7 {[%clk 0:02:51]} 9. Qe2 {[%clk 0:02:43]}  O-O {[%clk 0:02:50]} 10. g4 {[%clk 0:02:42]}  b5 {[%clk 0:02:47]} 11. Bb3 {[%clk 0:02:42]}  Na5 {[%clk 0:02:43]} 12. Rg1 {[%clk 0:02:41]}  Nxb3 {[%clk 0:02:42]} 13. axb3 {[%clk 0:02:41]}  c5 {[%clk 0:02:40]} 14. g5 {[%clk 0:02:40]}  hxg5 {[%clk 0:02:14]} 15. Bxg5 {[%clk 0:02:40]}  g6 {[%clk 0:02:08]} 16. Kd2 {[%clk 0:02:16]}  Bxh3 {[%clk 0:02:01]} 17. Rg3 {[%clk 0:01:32]}  Bg4 {[%clk 0:01:53]} 18. Bxf6 {[%clk 0:01:20]}  Bxf3 {[%clk 0:01:49]} 19. Bxe7 {[%clk 0:01:17]}  Bxe2 {[%clk 0:01:46]} 20. Bxd8 {[%clk 0:01:17]}  Bxd3 {[%clk 0:01:25]} 21. Bf6 {[%clk 0:01:16]}  c4 {[%clk 0:00:55]} 22. Rh1 {[%clk 0:01:12]} 1-0


[Site "https://www.chess.com"]

[Event "Titled Tuesday Blitz January 17 Early 2023"]
[White "Avazkhonov, Alikhon"]
[Black "Dilmukhametov, Artur"]
[WhiteFideId "14208504"]
[BlackFideId "24179922"]
[WhiteElo "1538"]
[BlackElo "2276"]
[Result "1-0"]
[Round "10"]
[TimeControl "180+2"]
[Date "2023.01.17"]
[WhiteClock "0:00:24"]
[BlackClock "0:01:42"]

1. d4 {[%clk 0:02:25]}  Nf6 {[%clk 0:02:58]} 2. c4 {[%clk 0:02:25]}  g6 {[%clk 0:02:57]} 3. Nc3 {[%clk 0:02:26]}  Bg7 {[%clk 0:02:57]} 4. e4 {[%clk 0:02:26]}  d6 {[%clk 0:02:57]} 5. f3 {[%clk 0:02:27]}  O-O {[%clk 0:02:56]} 6. Be3 {[%clk 0:02:27]}  Nbd7 {[%clk 0:02:56]} 7. Qd2 {[%clk 0:02:09]}  e5 {[%clk 0:02:55]} 8. d5 {[%clk 0:02:09]}  Nh5 {[%clk 0:02:52]} 9. Nge2 {[%clk 0:02:05]}  b6 {[%clk 0:02:37]} 10. O-O-O {[%clk 0:02:01]}  Nc5 {[%clk 0:02:36]} 11. g4 {[%clk 0:01:49]}  Nf6 {[%clk 0:02:34]} 12. Ng3 {[%clk 0:01:45]}  a5 {[%clk 0:02:33]} 13. h4 {[%clk 0:01:44]}  a4 {[%clk 0:02:30]} 14. h5 {[%clk 0:01:36]}  a3 {[%clk 0:02:25]} 15. b3 {[%clk 0:01:16]}  Bd7 {[%clk 0:02:19]} 16. Kb1 {[%clk 0:01:11]}  Qb8 {[%clk 0:02:18]} 17. Bh6 {[%clk 0:01:07]}  c6 {[%clk 0:02:11]} 18. Bxg7 {[%clk 0:01:01]}  Kxg7 {[%clk 0:02:11]} 19. hxg6 {[%clk 0:01:01]}  fxg6 {[%clk 0:02:10]} 20. Qh6+ {[%clk 0:01:02]}  Kg8 {[%clk 0:02:10]} 21. g5 {[%clk 0:01:03]}  Nxb3 {[%clk 0:02:02]} 22. gxf6 {[%clk 0:00:59]}  Rf7 {[%clk 0:01:58]} 23. axb3 {[%clk 0:00:33]}  b5 {[%clk 0:01:53]} 24. dxc6 {[%clk 0:00:29]}  Bxc6 {[%clk 0:01:52]} 25. cxb5 {[%clk 0:00:29]}  a2+ {[%clk 0:01:48]} 26. Ka1 {[%clk 0:00:29]}  Qa7 {[%clk 0:01:45]} 27. Bc4 {[%clk 0:00:26]}  Bd7 {[%clk 0:01:42]} 28. Qg7# {[%clk 0:00:24]} 1-0


[Site "https://www.chess.com"]

[Event "Titled Tuesday Blitz January 17 Early 2023"]
[White "Ciuffoletti, Paolo"]
[Black "Kostiukov, Alexandr"]
[WhiteFideId "807630"]
[BlackFideId "14108100"]
[WhiteElo "2106"]
[BlackElo "2271"]
[Result "0-1"]
[Round "10"]
[TimeControl "180+2"]
[Date "2023.01.17"]
[WhiteClock "0:00:20"]
[BlackClock "0:00:47"]

1. e4 {[%clk 0:03:00]}  c5 {[%clk 0:02:58]} 2. d4 {[%clk 0:02:59]}  cxd4 {[%clk 0:02:58]} 3. c3 {[%clk 0:03:00]}  g6 {[%clk 0:02:57]} 4. Nf3 {[%clk 0:02:59]}  Bg7 {[%clk 0:02:56]} 5. Bc4 {[%clk 0:02:59]}  e6 {[%clk 0:02:54]} 6. O-O {[%clk 0:02:56]}  Ne7 {[%clk 0:02:54]} 7. cxd4 {[%clk 0:02:52]}  d5 {[%clk 0:02:54]} 8. exd5 {[%clk 0:02:48]}  exd5 {[%clk 0:02:55]} 9. Bb5+ {[%clk 0:02:46]}  Nbc6 {[%clk 0:02:55]} 10. Nc3 {[%clk 0:02:40]}  O-O {[%clk 0:02:54]} 11. Bg5 {[%clk 0:02:40]}  Bg4 {[%clk 0:02:51]} 12. Bxc6 {[%clk 0:02:34]}  bxc6 {[%clk 0:02:50]} 13. Re1 {[%clk 0:02:17]}  f6 {[%clk 0:02:50]} 14. Be3 {[%clk 0:02:13]}  Nf5 {[%clk 0:02:44]} 15. Na4 {[%clk 0:01:59]}  Rb8 {[%clk 0:02:39]} 16. Rc1 {[%clk 0:01:50]}  Qa5 {[%clk 0:02:29]} 17. b3 {[%clk 0:01:45]}  Rfc8 {[%clk 0:02:01]} 18. h3 {[%clk 0:01:34]}  Bxf3 {[%clk 0:02:01]} 19. Qxf3 {[%clk 0:01:34]}  Qb4 {[%clk 0:01:45]} 20. Qd1 {[%clk 0:01:10]}  Nxe3 {[%clk 0:01:40]} 21. fxe3 {[%clk 0:00:59]}  Qd6 {[%clk 0:01:32]} 22. Re2 {[%clk 0:00:54]}  Qg3 {[%clk 0:01:30]} 23. Qe1 {[%clk 0:00:48]}  Qg5 {[%clk 0:01:29]} 24. Rec2 {[%clk 0:00:44]}  Re8 {[%clk 0:01:26]} 25. Rxc6 {[%clk 0:00:39]}  Rxe3 {[%clk 0:01:23]} 26. Rc8+ {[%clk 0:00:36]}  Bf8 {[%clk 0:01:03]} 27. Qa5 {[%clk 0:00:25]}  Re8 {[%clk 0:00:50]} 28. Rxb8 {[%clk 0:00:22]}  Qxc1+ {[%clk 0:00:49]} 29. Kh2 {[%clk 0:00:20]}  Qf4+ {[%clk 0:00:48]} 30. Kh1 {[%clk 0:00:20]}  Rxb8 {[%clk 0:00:47]} 31. Qxd5+ {[%clk 0:00:20]} 0-1


[Site "https://www.chess.com"]

[Event "Titled Tuesday Blitz January 17 Early 2023"]
[White "Stead, Kerry"]
[Black "Sovetbekova, Nurai"]
[WhiteFideId "3202577"]
[BlackFideId "13801910"]
[WhiteElo "1908"]
[BlackElo "1764"]
[Result "0-1"]
[Round "10"]
[TimeControl "180+2"]
[Date "2023.01.17"]
[WhiteClock "0:02:37"]
[BlackClock "0:01:58"]

1. d4 {[%clk 0:03:00]}  Nf6 {[%clk 0:02:59]} 2. f3 {[%clk 0:03:00]}  d5 {[%clk 0:02:58]} 3. e4 {[%clk 0:03:00]}  dxe4 {[%clk 0:02:57]} 4. Nc3 {[%clk 0:02:59]}  exf3 {[%clk 0:02:57]} 5. Nxf3 {[%clk 0:02:58]}  g6 {[%clk 0:02:56]} 6. Bc4 {[%clk 0:02:57]}  Bg7 {[%clk 0:02:56]} 7. O-O {[%clk 0:02:57]}  O-O {[%clk 0:02:56]} 8. Qe1 {[%clk 0:02:43]}  Bg4 {[%clk 0:02:49]} 9. Qh4 {[%clk 0:02:43]}  Nc6 {[%clk 0:02:42]} 10. Ne2 {[%clk 0:02:41]}  Qd7 {[%clk 0:02:12]} 11. c3 {[%clk 0:02:40]}  Rad8 {[%clk 0:02:07]} 12. Bh6 {[%clk 0:02:38]}  Bxf3 {[%clk 0:02:03]} 13. Rxf3 {[%clk 0:02:36]}  Qg4 {[%clk 0:01:59]} 14. Qh5 {[%clk 0:02:37]}  Qxh5 {[%clk 0:01:58]} 0-1


[Site "https://www.chess.com"]

[Event "Titled Tuesday Blitz January 17 Early 2023"]
[White "Kornyukov, Alexey"]
[Black "Aung Thant Zin"]
[WhiteFideId "4150457"]
[BlackFideId "13000063"]
[WhiteElo "2452"]
[BlackElo "2268"]
[Result "1-0"]
[Round "10"]
[TimeControl "180+2"]
[Date "2023.01.17"]
[WhiteClock "0:01:40"]
[BlackClock "0:00:10"]

1. e4 {[%clk 0:03:00]}  c5 {[%clk 0:01:41]} 2. Nf3 {[%clk 0:02:59]}  Nc6 {[%clk 0:01:40]} 3. c3 {[%clk 0:02:56]}  d6 {[%clk 0:01:40]} 4. d4 {[%clk 0:02:56]}  cxd4 {[%clk 0:01:40]} 5. cxd4 {[%clk 0:02:56]}  Bg4 {[%clk 0:01:40]} 6. Nc3 {[%clk 0:02:55]}  Nf6 {[%clk 0:01:39]} 7. Bb5 {[%clk 0:02:53]}  a6 {[%clk 0:01:37]} 8. Ba4 {[%clk 0:02:53]}  Bd7 {[%clk 0:01:36]} 9. O-O {[%clk 0:02:52]}  e6 {[%clk 0:01:36]} 10. e5 {[%clk 0:02:50]}  dxe5 {[%clk 0:01:31]} 11. dxe5 {[%clk 0:02:46]}  Ng8 {[%clk 0:01:28]} 12. Ne4 {[%clk 0:02:42]}  Be7 {[%clk 0:01:06]} 13. Bg5 {[%clk 0:02:25]}  Qc7 {[%clk 0:00:50]} 14. Nd6+ {[%clk 0:02:21]}  Bxd6 {[%clk 0:00:48]} 15. exd6 {[%clk 0:02:20]}  Qa5 {[%clk 0:00:47]} 16. Bxc6 {[%clk 0:02:18]}  bxc6 {[%clk 0:00:31]} 17. Bd2 {[%clk 0:01:57]}  Qd5 {[%clk 0:00:28]} 18. Qc2 {[%clk 0:01:55]}  Nf6 {[%clk 0:00:15]} 19. Bc3 {[%clk 0:01:52]}  h6 {[%clk 0:00:12]} 20. Rad1 {[%clk 0:01:49]}  Qh5 {[%clk 0:00:11]} 21. Bxf6 {[%clk 0:01:44]}  gxf6 {[%clk 0:00:10]} 22. Qc3 {[%clk 0:01:40]} 1-0


[Site "https://www.chess.com"]